[Event "*** Titled Tuesday Blitz"]
[Site "Chess.com"]
[Date "2020.12.01"]
[Round "10"]
[White "dosto07"]
[Black "Vandros57"]
[Result "1-0"]
[WhiteElo "2303"]
[BlackElo "2159"]
[TimeControl "180+1"]
[EndTime "11:50:58 PST"]
[Termination "dosto07 won by resignation"]

1. e4 {[%clk 0:03:00.9]} 1... c5 {[%clk 0:02:58.3]} 2. Nf3 {[%clk 0:02:59.2]}
2... e6 {[%clk 0:02:56.5]} 3. c3 {[%clk 0:02:58.5]} 3... d5 {[%clk 0:02:53.8]}
4. exd5 {[%clk 0:02:58.3]} 4... exd5 {[%clk 0:02:52.5]} 5. d4 {[%clk 0:02:59.2]}
5... Nc6 {[%clk 0:02:49.6]} 6. Bb5 {[%clk 0:02:58.5]} 6... Nf6 {[%clk
0:02:47.3]} 7. O-O {[%clk 0:02:55.7]} 7... Be7 {[%clk 0:02:45.9]} 8. dxc5 {[%clk
0:02:55.7]} 8... Bxc5 {[%clk 0:02:42.9]} 9. Re1+ {[%clk 0:02:54.3]} 9... Be6
{[%clk 0:02:41.5]} 10. Nbd2 {[%clk 0:02:48.9]} 10... O-O {[%clk 0:02:39.2]} 11.
Nb3 {[%clk 0:02:46.4]} 11... Be7 {[%clk 0:02:26.9]} 12. Nbd4 {[%clk 0:02:41.4]}
12... Nxd4 {[%clk 0:02:24.1]} 13. Nxd4 {[%clk 0:02:38]} 13... Qb6 {[%clk
0:02:22]} 14. Bd3 {[%clk 0:02:37.4]} 14... Bg4 {[%clk 0:02:12.6]} 15. Qc2 {[%clk
0:02:33.4]} 15... Rfe8 {[%clk 0:02:01.3]} 16. Bg5 {[%clk 0:02:32.3]} 16... h6
{[%clk 0:01:58.6]} 17. Bh4 {[%clk 0:02:30.8]} 17... Rac8 {[%clk 0:01:49.8]} 18.
Nf5 {[%clk 0:02:25.9]} 18... Bxf5 {[%clk 0:01:47.5]} 19. Bxf5 {[%clk 0:02:26.2]}
19... d4 {[%clk 0:01:39.7]} 20. Bxc8 {[%clk 0:02:23.9]} 1-0

[Event "*** Titled Tuesday Blitz"]
[Site "Chess.com"]
[Date "2020.12.01"]
[Round "10"]
[White "zala02"]
[Black "NitaLucian"]
[Result "1-0"]
[WhiteElo "2186"]
[BlackElo "2292"]
[TimeControl "180+1"]
[EndTime "11:50:59 PST"]
[Termination "zala02 won by resignation"]

1. d4 {[%clk 0:03:00.9]} 1... d6 {[%clk 0:02:59.9]} 2. Nf3 {[%clk 0:03:00]} 2...
Nd7 {[%clk 0:03:00.8]} 3. c4 {[%clk 0:02:59.4]} 3... e5 {[%clk 0:03:01]} 4. Nc3
{[%clk 0:02:59.4]} 4... Be7 {[%clk 0:03:01]} 5. g3 {[%clk 0:02:58.5]} 5... Ngf6
{[%clk 0:03:01.3]} 6. Bg2 {[%clk 0:02:58.7]} 6... O-O {[%clk 0:03:01.5]} 7. O-O
{[%clk 0:02:58.9]} 7... a6 {[%clk 0:03:02]} 8. Qc2 {[%clk 0:02:59.2]} 8... Rb8
{[%clk 0:03:02.4]} 9. Rd1 {[%clk 0:02:59.5]} 9... exd4 {[%clk 0:02:58.5]} 10.
Nxd4 {[%clk 0:02:59.2]} 10... Nc5 {[%clk 0:02:58.1]} 11. b4 {[%clk 0:02:53.3]}
11... Ne6 {[%clk 0:02:57.8]} 12. Nf5 {[%clk 0:02:53.9]} 12... Re8 {[%clk
0:02:57.7]} 13. Nxe7+ {[%clk 0:02:52.5]} 13... Qxe7 {[%clk 0:02:57.5]} 14. Bb2
{[%clk 0:02:52.9]} 14... b5 {[%clk 0:02:55.7]} 15. cxb5 {[%clk 0:02:49]} 15...
axb5 {[%clk 0:02:55.8]} 16. a3 {[%clk 0:02:43.2]} 16... Bb7 {[%clk 0:02:55.8]}
17. Bxb7 {[%clk 0:02:28.2]} 17... Rxb7 {[%clk 0:02:55.6]} 18. Qd3 {[%clk
0:02:28.3]} 18... Reb8 {[%clk 0:02:49.1]} 19. Nd5 {[%clk 0:02:21]} 19... Nxd5
{[%clk 0:02:48.2]} 20. Qxd5 {[%clk 0:02:21.9]} 20... Rb6 {[%clk 0:02:36.1]} 21.
Rac1 {[%clk 0:02:18.2]} 21... c5 {[%clk 0:02:34]} 22. bxc5 {[%clk 0:02:14.1]}
22... dxc5 {[%clk 0:02:34.3]} 23. Qe5 {[%clk 0:02:08]} 23... b4 {[%clk 0:02:33]}
24. f4 {[%clk 0:02:06.8]} 24... Qc7 {[%clk 0:02:21]} 25. f5 {[%clk 0:02:02]}
25... Qxe5 {[%clk 0:02:15.7]} 26. Bxe5 {[%clk 0:02:02.9]} 26... bxa3 {[%clk
0:02:13.5]} 27. Bxb8 {[%clk 0:01:59.3]} 27... Nd4 {[%clk 0:02:13.8]} 28. Rxd4
{[%clk 0:01:54.2]} 28... Rxb8 {[%clk 0:02:12.5]} 29. Ra4 {[%clk 0:01:50.5]} 1-0

[Event "*** Titled Tuesday Blitz"]
[Site "Chess.com"]
[Date "2020.12.01"]
[Round "10"]
[White "GianmarcoVaR"]
[Black "Sanyura"]
[Result "0-1"]
[WhiteElo "2644"]
[BlackElo "2540"]
[TimeControl "180+1"]
[EndTime "11:51:09 PST"]
[Termination "Sanyura won by resignation"]

1. d4 {[%clk 0:02:55.9]} 1... Nf6 {[%clk 0:02:59.7]} 2. c4 {[%clk 0:02:54.6]}
2... g6 {[%clk 0:02:56.1]} 3. g3 {[%clk 0:02:54.7]} 3... Bg7 {[%clk 0:02:56.6]}
4. Bg2 {[%clk 0:02:55.4]} 4... O-O {[%clk 0:02:57.2]} 5. Nc3 {[%clk 0:02:55.6]}
5... d6 {[%clk 0:02:57.7]} 6. Nf3 {[%clk 0:02:56.2]} 6... Nbd7 {[%clk
0:02:58.4]} 7. O-O {[%clk 0:02:56.7]} 7... e5 {[%clk 0:02:58.6]} 8. e4 {[%clk
0:02:57.6]} 8... exd4 {[%clk 0:02:59]} 9. Nxd4 {[%clk 0:02:58.5]} 9... Nc5
{[%clk 0:02:59.6]} 10. h3 {[%clk 0:02:58.7]} 10... Re8 {[%clk 0:02:59.9]} 11.
Re1 {[%clk 0:02:59.3]} 11... Bd7 {[%clk 0:03:00.4]} 12. Bf4 {[%clk 0:02:58.7]}
12... h6 {[%clk 0:02:57.9]} 13. Qd2 {[%clk 0:02:57.9]} 13... g5 {[%clk
0:02:54.4]} 14. Be3 {[%clk 0:02:58.1]} 14... Nfxe4 {[%clk 0:02:54.4]} 15. Nxe4
{[%clk 0:02:58.5]} 15... Nxe4 {[%clk 0:02:55.3]} 16. Qc2 {[%clk 0:02:57.1]}
16... Nc5 {[%clk 0:02:54.8]} 17. Nf5 {[%clk 0:02:56.4]} 17... Bxf5 {[%clk
0:02:29.7]} 18. Qxf5 {[%clk 0:02:55]} 18... Qf6 {[%clk 0:02:30]} 19. Qxf6 {[%clk
0:02:20.9]} 19... Bxf6 {[%clk 0:02:30.9]} 20. Bxc5 {[%clk 0:02:21.6]} 20... dxc5
{[%clk 0:02:30.5]} 21. Bxb7 {[%clk 0:02:22.3]} 21... Rxe1+ {[%clk 0:02:27.9]}
22. Rxe1 {[%clk 0:02:21.9]} 22... Rb8 {[%clk 0:02:28.5]} 23. Bd5 {[%clk
0:02:15.4]} 23... Rxb2 {[%clk 0:02:28.5]} 24. Re3 {[%clk 0:02:15.7]} 24... Rxa2
{[%clk 0:02:22]} 25. Rb3 {[%clk 0:02:09.8]} 25... Kg7 {[%clk 0:02:17.6]} 26. Rb7
{[%clk 0:02:09.8]} 26... Bd4 {[%clk 0:02:17]} 27. Rxc7 {[%clk 0:02:10.2]} 27...
Rxf2 {[%clk 0:02:15.2]} 28. Rd7 {[%clk 0:01:56.8]} 28... a5 {[%clk 0:02:08.8]}
29. Bc6 {[%clk 0:01:57.3]} 29... Rf6+ {[%clk 0:02:08.1]} 30. Rxd4 {[%clk
0:01:56.7]} 30... cxd4 {[%clk 0:02:07.6]} 31. Ba4 {[%clk 0:01:54.1]} 31... d3
{[%clk 0:02:07.1]} 32. c5 {[%clk 0:01:53.8]} 32... d2 {[%clk 0:02:07.5]} 33. c6
{[%clk 0:01:54.7]} 33... Rxc6 {[%clk 0:02:07.3]} 0-1

[Event "*** Titled Tuesday Blitz"]
[Site "Chess.com"]
[Date "2020.12.01"]
[Round "10"]
[White "BogdanDeac"]
[Black "nubair1198"]
[Result "1-0"]
[WhiteElo "2968"]
[BlackElo "2839"]
[TimeControl "180+1"]
[EndTime "11:51:10 PST"]
[Termination "BogdanDeac won by resignation"]

1. Nf3 {[%clk 0:03:00.9]} 1... g6 {[%clk 0:03:00]} 2. e4 {[%clk 0:03:00.3]} 2...
Bg7 {[%clk 0:03:00.6]} 3. d4 {[%clk 0:03:00.6]} 3... c6 {[%clk 0:03:01.2]} 4.
Nc3 {[%clk 0:02:35.7]} 4... d6 {[%clk 0:03:01.5]} 5. h3 {[%clk 0:02:35]} 5...
Nf6 {[%clk 0:03:02]} 6. Bd3 {[%clk 0:02:32]} 6... O-O {[%clk 0:03:02.3]} 7. O-O
{[%clk 0:02:32.2]} 7... Nbd7 {[%clk 0:03:02.9]} 8. e5 {[%clk 0:02:29.4]} 8...
Ne8 {[%clk 0:03:02.9]} 9. Re1 {[%clk 0:02:20]} 9... dxe5 {[%clk 0:03:02.5]} 10.
dxe5 {[%clk 0:02:19.6]} 10... Nc7 {[%clk 0:03:03.1]} 11. Qe2 {[%clk 0:02:17]}
11... Ne6 {[%clk 0:03:00.8]} 12. Bc4 {[%clk 0:02:14]} 12... Nb6 {[%clk
0:02:57.8]} 13. Bb3 {[%clk 0:02:02.8]} 13... a5 {[%clk 0:02:58.3]} 14. Be3
{[%clk 0:02:00.5]} 14... Qc7 {[%clk 0:02:39.7]} 15. Rad1 {[%clk 0:01:58.6]}
15... Bd7 {[%clk 0:02:40]} 16. Bxb6 {[%clk 0:01:57.1]} 16... Qxb6 {[%clk
0:02:40]} 17. Rxd7 {[%clk 0:01:56.5]} 17... Rfe8 {[%clk 0:02:40.9]} 18. Bxe6
{[%clk 0:01:55.7]} 18... fxe6 {[%clk 0:02:37.9]} 19. Qc4 {[%clk 0:01:55.6]}
19... c5 {[%clk 0:02:34.3]} 20. Ng5 {[%clk 0:01:54.3]} 20... Qa6 {[%clk
0:02:31.7]} 21. Qxe6+ {[%clk 0:01:53.5]} 21... Qxe6 {[%clk 0:02:31.7]} 22. Nxe6
{[%clk 0:01:54.4]} 22... Bh6 {[%clk 0:02:32.6]} 23. Red1 {[%clk 0:01:50]} 23...
Rab8 {[%clk 0:02:29.5]} 24. Nc7 {[%clk 0:01:41]} 24... Bf4 {[%clk 0:02:14]} 25.
Nxe8 {[%clk 0:01:39.5]} 25... Rxe8 {[%clk 0:02:14.9]} 26. Rd8 {[%clk 0:01:37.6]}
26... Rxd8 {[%clk 0:02:15.4]} 27. Rxd8+ {[%clk 0:01:36.9]} 27... Kf7 {[%clk
0:02:16.3]} 28. Rb8 {[%clk 0:01:36.5]} 28... Bxe5 {[%clk 0:02:13.7]} 29. Rxb7
{[%clk 0:01:36.8]} 1-0

[Event "*** Titled Tuesday Blitz"]
[Site "Chess.com"]
[Date "2020.12.01"]
[Round "10"]
[White "Gogolev_Artemy"]
[Black "LamaChampetre"]
[Result "0-1"]
[WhiteElo "2393"]
[BlackElo "2240"]
[TimeControl "180+1"]
[EndTime "11:51:20 PST"]
[Termination "LamaChampetre won by resignation"]

1. e4 {[%clk 0:02:39.4]} 1... c5 {[%clk 0:02:59.1]} 2. Nf3 {[%clk 0:02:37.6]}
2... g6 {[%clk 0:02:58]} 3. c3 {[%clk 0:02:34]} 3... d5 {[%clk 0:02:57.1]} 4.
exd5 {[%clk 0:02:32.2]} 4... Qxd5 {[%clk 0:02:58]} 5. d4 {[%clk 0:02:31.8]} 5...
Bg7 {[%clk 0:02:56]} 6. Na3 {[%clk 0:02:31.6]} 6... cxd4 {[%clk 0:02:46.1]} 7.
Nb5 {[%clk 0:02:29.1]} 7... Na6 {[%clk 0:02:30.2]} 8. Qa4 {[%clk 0:02:18]} 8...
Bd7 {[%clk 0:02:25.2]} 9. Qxa6 {[%clk 0:02:15.2]} 9... Qe4+ {[%clk 0:02:18.2]}
10. Kd2 {[%clk 0:01:44.7]} 10... bxa6 {[%clk 0:02:16.3]} 11. Nc7+ {[%clk
0:01:44]} 11... Kd8 {[%clk 0:02:15.8]} 12. Nxa8 {[%clk 0:01:43.9]} 12... dxc3+
{[%clk 0:01:54.9]} 13. bxc3 {[%clk 0:01:42]} 13... Bh6+ {[%clk 0:01:51.8]} 0-1

[Event "*** Titled Tuesday Blitz"]
[Site "Chess.com"]
[Date "2020.12.01"]
[Round "10"]
[White "anon481216"]
[Black "Srisshhhtea"]
[Result "1/2-1/2"]
[WhiteElo "2409"]
[BlackElo "2273"]
[TimeControl "180+1"]
[EndTime "11:51:24 PST"]
[Termination "Game drawn by repetition"]

1. d4 {[%clk 0:03:00.9]} 1... e6 {[%clk 0:03:00.9]} 2. e4 {[%clk 0:02:59.2]}
2... d5 {[%clk 0:02:58.8]} 3. Nc3 {[%clk 0:02:59.4]} 3... Bb4 {[%clk 0:02:56.6]}
4. exd5 {[%clk 0:02:58.5]} 4... exd5 {[%clk 0:02:54.5]} 5. Bd3 {[%clk
0:02:58.4]} 5... Nc6 {[%clk 0:02:48.8]} 6. Ne2 {[%clk 0:02:57.6]} 6... Nge7
{[%clk 0:02:43.1]} 7. O-O {[%clk 0:02:56.2]} 7... Bf5 {[%clk 0:02:41.6]} 8. Bf4
{[%clk 0:02:50.9]} 8... Bxd3 {[%clk 0:02:38.2]} 9. Qxd3 {[%clk 0:02:50.5]} 9...
O-O {[%clk 0:02:37.3]} 10. a3 {[%clk 0:02:46.7]} 10... Bxc3 {[%clk 0:02:35.7]}
11. Nxc3 {[%clk 0:02:46.5]} 11... Ng6 {[%clk 0:02:34.5]} 12. Bg3 {[%clk
0:02:46.3]} 12... a6 {[%clk 0:02:31.9]} 13. Rfe1 {[%clk 0:02:46.1]} 13... Qd7
{[%clk 0:02:29.2]} 14. Re2 {[%clk 0:02:43.5]} 14... Rfe8 {[%clk 0:02:24.6]} 15.
Rae1 {[%clk 0:02:43.5]} 15... Rxe2 {[%clk 0:02:21.1]} 16. Rxe2 {[%clk
0:02:42.4]} 16... Re8 {[%clk 0:02:19.9]} 17. Rxe8+ {[%clk 0:02:38.8]} 17... Qxe8
{[%clk 0:02:20.8]} 18. Nxd5 {[%clk 0:02:36.8]} 18... Nxd4 {[%clk 0:02:17.4]} 19.
f3 {[%clk 0:02:22.7]} 19... Ne6 {[%clk 0:02:00.4]} 20. Nxc7 {[%clk 0:02:18.6]}
20... Nxc7 {[%clk 0:01:59.2]} 21. Bxc7 {[%clk 0:02:17.8]} 21... Qe1+ {[%clk
0:01:55.8]} 22. Qf1 {[%clk 0:02:17]} 22... Qd2 {[%clk 0:01:52.3]} 23. Qd3 {[%clk
0:02:01]} 23... Qe1+ {[%clk 0:01:50.8]} 24. Qf1 {[%clk 0:01:59.9]} 24... Qd2
{[%clk 0:01:48.9]} 25. Qd3 {[%clk 0:01:40.3]} 25... Qe1+ {[%clk 0:01:44.8]}
1/2-1/2

[Event "*** Titled Tuesday Blitz"]
[Site "Chess.com"]
[Date "2020.12.01"]
[Round "10"]
[White "diamonds13"]
[Black "FontVella8"]
[Result "1-0"]
[WhiteElo "2347"]
[BlackElo "2473"]
[TimeControl "180+1"]
[EndTime "11:51:26 PST"]
[Termination "diamonds13 won by resignation"]

1. d4 {[%clk 0:03:00.9]} 1... Nf6 {[%clk 0:02:59.2]} 2. c4 {[%clk 0:03:01.2]}
2... e6 {[%clk 0:02:59.6]} 3. Nc3 {[%clk 0:03:01.1]} 3... Bb4 {[%clk 0:02:59.5]}
4. e3 {[%clk 0:03:00.2]} 4... O-O {[%clk 0:02:58]} 5. Bd2 {[%clk 0:03:00.4]}
5... d6 {[%clk 0:02:57.5]} 6. a3 {[%clk 0:02:58.9]} 6... Bxc3 {[%clk 0:02:56]}
7. Bxc3 {[%clk 0:02:59.6]} 7... Re8 {[%clk 0:02:55.9]} 8. Bd3 {[%clk 0:02:59.7]}
8... b6 {[%clk 0:02:55.7]} 9. Ne2 {[%clk 0:02:58.8]} 9... Bb7 {[%clk 0:02:56]}
10. O-O {[%clk 0:02:58.3]} 10... Nbd7 {[%clk 0:02:55.6]} 11. f3 {[%clk
0:02:57.7]} 11... e5 {[%clk 0:02:55.8]} 12. d5 {[%clk 0:02:57.2]} 12... a5
{[%clk 0:02:54.5]} 13. b4 {[%clk 0:02:56.5]} 13... axb4 {[%clk 0:02:47]} 14.
axb4 {[%clk 0:02:56.7]} 14... e4 {[%clk 0:02:43.8]} 15. Rxa8 {[%clk 0:02:45]}
15... Qxa8 {[%clk 0:02:40]} 16. Bc2 {[%clk 0:02:44.7]} 16... Qa3 {[%clk
0:02:33.4]} 17. f4 {[%clk 0:02:38.2]} 17... Ra8 {[%clk 0:02:29.4]} 18. Qd4
{[%clk 0:02:26]} 18... Ne8 {[%clk 0:02:17]} 19. Ra1 {[%clk 0:02:22.2]} 19...
Qxa1+ {[%clk 0:02:16.7]} 20. Bxa1 {[%clk 0:02:21.7]} 20... Ndf6 {[%clk
0:02:14.9]} 21. h3 {[%clk 0:02:19]} 21... Ra2 {[%clk 0:02:14.6]} 22. Qc3 {[%clk
0:02:12.7]} 22... h6 {[%clk 0:02:09.9]} 23. Nc1 {[%clk 0:02:12.6]} 23... Ra8
{[%clk 0:02:09.1]} 24. g4 {[%clk 0:02:12.8]} 24... Bc8 {[%clk 0:02:08.1]} 25. g5
{[%clk 0:02:11.4]} 25... hxg5 {[%clk 0:02:07.4]} 26. fxg5 {[%clk 0:02:10.9]}
26... Nh5 {[%clk 0:02:07.1]} 27. Bxe4 {[%clk 0:02:07.7]} 27... Bxh3 {[%clk
0:02:06.3]} 28. Bf3 {[%clk 0:02:04.8]} 28... Bf5 {[%clk 0:01:29.5]} 29. Bxh5
{[%clk 0:02:01.6]} 1-0

[Event "*** Titled Tuesday Blitz"]
[Site "Chess.com"]
[Date "2020.12.01"]
[Round "10"]
[White "Semetey"]
[Black "anasta10"]
[Result "0-1"]
[WhiteElo "2574"]
[BlackElo "2453"]
[TimeControl "180+1"]
[EndTime "11:51:33 PST"]
[Termination "anasta10 won by resignation"]

1. Nf3 {[%clk 0:03:00.9]} 1... Nf6 {[%clk 0:02:58.5]} 2. e3 {[%clk 0:03:01.8]}
2... g6 {[%clk 0:02:57.5]} 3. d4 {[%clk 0:03:02.7]} 3... Bg7 {[%clk 0:02:57.4]}
4. Bd3 {[%clk 0:03:03.3]} 4... O-O {[%clk 0:02:57.8]} 5. O-O {[%clk 0:03:04.2]}
5... d5 {[%clk 0:02:58]} 6. c4 {[%clk 0:03:04.1]} 6... c5 {[%clk 0:02:51.2]} 7.
dxc5 {[%clk 0:02:58.9]} 7... Na6 {[%clk 0:02:49.6]} 8. Nc3 {[%clk 0:02:57.9]}
8... Nxc5 {[%clk 0:02:48.4]} 9. cxd5 {[%clk 0:02:47.4]} 9... Nxd5 {[%clk
0:02:46.7]} 10. Nxd5 {[%clk 0:02:45.2]} 10... Qxd5 {[%clk 0:02:47.6]} 11. Be2
{[%clk 0:02:43.3]} 11... Qxd1 {[%clk 0:02:44.2]} 12. Rxd1 {[%clk 0:02:44.2]}
12... Bf5 {[%clk 0:02:41.4]} 13. Nd4 {[%clk 0:02:43.9]} 13... Rfd8 {[%clk
0:02:17.7]} 14. Nxf5 {[%clk 0:02:39.7]} 14... gxf5 {[%clk 0:02:18.4]} 15. Rb1
{[%clk 0:02:39.1]} 15... Rxd1+ {[%clk 0:02:13.6]} 16. Bxd1 {[%clk 0:02:39.1]}
16... Rd8 {[%clk 0:01:55.7]} 17. Bc2 {[%clk 0:02:39.1]} 17... Nd3 {[%clk
0:01:54.6]} 18. b3 {[%clk 0:02:31.2]} 18... Nxc1 {[%clk 0:01:44.7]} 19. Rxc1
{[%clk 0:02:30]} 19... Rc8 {[%clk 0:01:45]} 20. g4 {[%clk 0:02:14.7]} 20... Bb2
{[%clk 0:01:42.1]} 21. Rb1 {[%clk 0:02:13.7]} 21... Rxc2 {[%clk 0:01:42.1]} 22.
gxf5 {[%clk 0:02:14.6]} 22... Kg7 {[%clk 0:01:39.9]} 23. Kg2 {[%clk 0:02:11.9]}
23... Kf6 {[%clk 0:01:35.1]} 24. Kf3 {[%clk 0:02:07.4]} 24... Kxf5 {[%clk
0:01:34.4]} 25. e4+ {[%clk 0:02:07.7]} 25... Kf6 {[%clk 0:01:34]} 26. Ke3 {[%clk
0:02:08.6]} 26... Ba3 {[%clk 0:01:33.2]} 27. h4 {[%clk 0:02:05.5]} 27... Bc5+
{[%clk 0:01:30.8]} 28. Kd3 {[%clk 0:02:05.4]} 28... Rxf2 {[%clk 0:01:28.9]} 29.
Rc1 {[%clk 0:02:06]} 29... b6 {[%clk 0:01:27.5]} 0-1

[Event "*** Titled Tuesday Blitz"]
[Site "Chess.com"]
[Date "2020.12.01"]
[Round "10"]
[White "Volodar_Murzin"]
[Black "Gulkov_Igor"]
[Result "1-0"]
[WhiteElo "2602"]
[BlackElo "2505"]
[TimeControl "180+1"]
[EndTime "11:51:49 PST"]
[Termination "Volodar_Murzin won by resignation"]

1. e4 {[%clk 0:03:00.9]} 1... c5 {[%clk 0:02:59.4]} 2. Nf3 {[%clk 0:03:00.7]}
2... d6 {[%clk 0:02:59.3]} 3. d4 {[%clk 0:03:00.7]} 3... cxd4 {[%clk 0:02:59.2]}
4. Nxd4 {[%clk 0:03:01.6]} 4... Nf6 {[%clk 0:02:59.3]} 5. Nc3 {[%clk 0:03:00.9]}
5... a6 {[%clk 0:02:59.6]} 6. Be3 {[%clk 0:03:00.5]} 6... e5 {[%clk 0:02:58.8]}
7. Nb3 {[%clk 0:03:00.1]} 7... Be6 {[%clk 0:02:58.7]} 8. f3 {[%clk 0:03:00.2]}
8... Nbd7 {[%clk 0:02:58.2]} 9. g4 {[%clk 0:02:59.7]} 9... Be7 {[%clk
0:02:57.8]} 10. Qd2 {[%clk 0:02:57.1]} 10... O-O {[%clk 0:02:57.5]} 11. O-O-O
{[%clk 0:02:54.9]} 11... b5 {[%clk 0:02:56.9]} 12. g5 {[%clk 0:02:55.1]} 12...
Nh5 {[%clk 0:02:56.4]} 13. Nd5 {[%clk 0:02:53.3]} 13... Bxd5 {[%clk 0:02:52.9]}
14. exd5 {[%clk 0:02:54.2]} 14... f6 {[%clk 0:02:47.9]} 15. g6 {[%clk 0:02:50]}
15... hxg6 {[%clk 0:02:45.5]} 16. Na5 {[%clk 0:02:44.9]} 16... f5 {[%clk
0:02:41.4]} 17. Nc6 {[%clk 0:02:44.1]} 17... Qe8 {[%clk 0:02:41.5]} 18. Rg1
{[%clk 0:02:44.7]} 18... Nb8 {[%clk 0:02:36.2]} 19. Nxe7+ {[%clk 0:02:39.8]}
19... Qxe7 {[%clk 0:02:35.9]} 20. Rxg6 {[%clk 0:02:40.2]} 20... f4 {[%clk
0:01:15.9]} 21. Bf2 {[%clk 0:02:38]} 21... Nf6 {[%clk 0:01:13]} 22. Bh3 {[%clk
0:02:37]} 22... Nbd7 {[%clk 0:00:49.2]} 23. Rdg1 {[%clk 0:02:35.5]} 23... Rac8
{[%clk 0:00:41.6]} 24. Bh4 {[%clk 0:02:30.3]} 24... Rc5 {[%clk 0:00:37.3]} 25.
Bxd7 {[%clk 0:02:25.1]} 1-0

[Event "*** Titled Tuesday Blitz"]
[Site "Chess.com"]
[Date "2020.12.01"]
[Round "10"]
[White "shnitez"]
[Black "XDPS"]
[Result "0-1"]
[WhiteElo "2586"]
[BlackElo "2770"]
[TimeControl "180+1"]
[EndTime "11:52:21 PST"]
[Termination "XDPS won by resignation"]

1. c4 {[%clk 0:03:00.9]} 1... e6 {[%clk 0:02:59.2]} 2. Nf3 {[%clk 0:02:59.9]}
2... d5 {[%clk 0:02:58.9]} 3. e3 {[%clk 0:02:59.7]} 3... Nf6 {[%clk 0:02:58.3]}
4. b3 {[%clk 0:02:58.1]} 4... c6 {[%clk 0:02:57]} 5. Bb2 {[%clk 0:02:56.4]} 5...
Bd6 {[%clk 0:02:54.2]} 6. Nc3 {[%clk 0:02:49.6]} 6... O-O {[%clk 0:02:53.2]} 7.
Qc2 {[%clk 0:02:49.2]} 7... e5 {[%clk 0:02:53.1]} 8. cxd5 {[%clk 0:02:48.3]}
8... cxd5 {[%clk 0:02:52.9]} 9. Nb5 {[%clk 0:02:32.7]} 9... Nc6 {[%clk
0:02:52.9]} 10. Nxd6 {[%clk 0:02:30.1]} 10... Qxd6 {[%clk 0:02:53.8]} 11. Rc1
{[%clk 0:02:21.4]} 11... Bg4 {[%clk 0:02:32.5]} 12. Qc5 {[%clk 0:01:43.2]} 12...
Qe6 {[%clk 0:02:29.5]} 13. Bb5 {[%clk 0:01:33.5]} 13... Rfc8 {[%clk 0:02:19.5]}
14. Bxc6 {[%clk 0:00:59.5]} 14... Rxc6 {[%clk 0:02:17.5]} 15. Qb4 {[%clk
0:01:00]} 15... Rxc1+ {[%clk 0:02:14.1]} 16. Bxc1 {[%clk 0:01:00.9]} 16... Rc8
{[%clk 0:02:01.3]} 17. O-O {[%clk 0:00:48.1]} 17... Bxf3 {[%clk 0:01:59.5]} 18.
gxf3 {[%clk 0:00:49]} 18... e4 {[%clk 0:02:00]} 19. Kh1 {[%clk 0:00:25.1]} 19...
Qh3 {[%clk 0:01:56.1]} 20. Rg1 {[%clk 0:00:16.5]} 20... Qxf3+ {[%clk 0:01:55.4]}
0-1

[Event "*** Titled Tuesday Blitz"]
[Site "Chess.com"]
[Date "2020.12.01"]
[Round "10"]
[White "AliKa2810"]
[Black "anon219"]
[Result "0-1"]
[WhiteElo "2584"]
[BlackElo "2757"]
[TimeControl "180+1"]
[EndTime "11:52:26 PST"]
[Termination "anon219 won by resignation"]

1. d4 {[%clk 0:03:00.9]} 1... d5 {[%clk 0:02:59.1]} 2. c4 {[%clk 0:03:01.1]}
2... e6 {[%clk 0:02:59.2]} 3. Nc3 {[%clk 0:03:01]} 3... a6 {[%clk 0:02:58.7]} 4.
cxd5 {[%clk 0:03:00.1]} 4... exd5 {[%clk 0:02:59.6]} 5. Nf3 {[%clk 0:03:00.7]}
5... c6 {[%clk 0:02:59.2]} 6. e4 {[%clk 0:03:00.3]} 6... dxe4 {[%clk 0:02:11.5]}
7. Ng5 {[%clk 0:02:59.8]} 7... Be7 {[%clk 0:02:05.3]} 8. Bc4 {[%clk 0:02:59.3]}
8... Bxg5 {[%clk 0:02:04.4]} 9. Qh5 {[%clk 0:02:59.7]} 9... Be7 {[%clk
0:02:03.3]} 10. Qxf7+ {[%clk 0:02:57.2]} 10... Kd7 {[%clk 0:02:02.9]} 11. Qxg7
{[%clk 0:01:49.1]} 11... Nf6 {[%clk 0:01:59.5]} 12. Bf4 {[%clk 0:01:44.6]} 12...
Qf8 {[%clk 0:01:47.6]} 13. Qg3 {[%clk 0:01:35.1]} 13... Nh5 {[%clk 0:01:46.4]}
14. Qh3+ {[%clk 0:01:35]} 14... Kd8 {[%clk 0:01:45.5]} 15. Qxh5 {[%clk
0:01:32.9]} 15... Qxf4 {[%clk 0:01:45.3]} 16. Ne2 {[%clk 0:00:53.8]} 16... Qg5
{[%clk 0:01:40.5]} 17. Qf7 {[%clk 0:00:47.1]} 17... Rf8 {[%clk 0:01:36.7]} 18.
Qxh7 {[%clk 0:00:46.7]} 18... Bf5 {[%clk 0:01:30.7]} 0-1

[Event "*** Titled Tuesday Blitz"]
[Site "Chess.com"]
[Date "2020.12.01"]
[Round "10"]
[White "redbaron8888"]
[Black "chidori_boruto"]
[Result "1-0"]
[WhiteElo "2573"]
[BlackElo "2646"]
[TimeControl "180+1"]
[EndTime "11:52:28 PST"]
[Termination "redbaron8888 won by checkmate"]

1. d4 {[%clk 0:03:00.9]} 1... Nf6 {[%clk 0:02:59]} 2. c4 {[%clk 0:02:58.9]} 2...
g6 {[%clk 0:02:58.7]} 3. Nc3 {[%clk 0:02:58.5]} 3... Bg7 {[%clk 0:02:59.2]} 4.
e4 {[%clk 0:02:58.8]} 4... d6 {[%clk 0:02:59.7]} 5. Be2 {[%clk 0:02:59.3]} 5...
O-O {[%clk 0:02:59.3]} 6. Bg5 {[%clk 0:02:59.8]} 6... h6 {[%clk 0:02:55.1]} 7.
Be3 {[%clk 0:02:58.4]} 7... e5 {[%clk 0:02:53.7]} 8. d5 {[%clk 0:02:56.5]} 8...
a5 {[%clk 0:02:52.7]} 9. h4 {[%clk 0:02:55.5]} 9... Na6 {[%clk 0:02:51.9]} 10.
Qd2 {[%clk 0:02:55.1]} 10... h5 {[%clk 0:02:50.5]} 11. f3 {[%clk 0:02:51.2]}
11... Nd7 {[%clk 0:02:47.7]} 12. O-O-O {[%clk 0:02:48.4]} 12... Ndc5 {[%clk
0:02:46.2]} 13. Kb1 {[%clk 0:02:47.5]} 13... f5 {[%clk 0:02:44.7]} 14. Bg5
{[%clk 0:02:46.2]} 14... Qe8 {[%clk 0:02:43.6]} 15. Nh3 {[%clk 0:02:42.9]} 15...
Bd7 {[%clk 0:02:40.3]} 16. Rdg1 {[%clk 0:02:39.1]} 16... a4 {[%clk 0:02:33]} 17.
g4 {[%clk 0:02:36.6]} 17... hxg4 {[%clk 0:02:31.9]} 18. fxg4 {[%clk 0:02:37.5]}
18... fxe4 {[%clk 0:02:29.5]} 19. h5 {[%clk 0:02:35.9]} 19... a3 {[%clk
0:02:20.9]} 20. h6 {[%clk 0:02:13.5]} 20... Bf6 {[%clk 0:02:16.2]} 21. Bxf6
{[%clk 0:01:52.6]} 21... Rxf6 {[%clk 0:02:17.1]} 22. h7+ {[%clk 0:01:51.8]}
22... Kh8 {[%clk 0:02:16.1]} 23. Ng5 {[%clk 0:01:45]} 23... Rf4 {[%clk
0:02:08.8]} 24. Rf1 {[%clk 0:01:33.7]} 24... Qf8 {[%clk 0:01:40.9]} 25. Rxf4
{[%clk 0:01:30]} 25... exf4 {[%clk 0:01:38.2]} 26. Qd4+ {[%clk 0:01:28.2]} 26...
Qg7 {[%clk 0:00:57.4]} 27. Nf7# {[%clk 0:01:23.2]} 1-0